[Event "58th Akiba Rubinstein D 2022"]
[Site "Polanica-Zdroj"]
[Date "2022.08.19"]
[Round "7.17"]
[White "Ursnik, Patryk"]
[Black "Sleczka, Krzysztof"]
[Result "1/2-1/2"]
[ECO "C47"]
[WhiteElo "1671"]
[BlackElo "1443"]
[Annotator "NA RC"]
[PlyCount "31"]
[EventDate "2022.08.13"]
[EventCountry "POL"]
[SourceTitle "playchess.com"]
[Source "ChessBase"]
[SourceQuality "1"]
[TimeControl "40/5400+30:1800+30"]

1. e4 {[%emt 0:10:59]} e5 {[%emt 0:00:02]} 2. Nf3 {[%emt 0:00:06]} Nc6 {[%emt 0:00:04]} 3. Nc3 {[%emt 0:00:05]} Nf6 {[%emt 0:00:03]} 4. d4 {[%emt 0:00:11]} exd4 {[%emt 0:00:05]} 5. Nxd4 {[%emt 0:00:05]} Bb4 {[%emt 0:00:27]} 6. Nxc6 {[%emt 0:00:06]} bxc6 {[%emt 0:00:04]} 7. Bd3 {[%emt 0:00:07]} d5 {[%emt 0:00:14]} 8. exd5 {[%emt 0:00:05]} O-O {[%emt 0:00:03]} 9. O-O {[%emt 0:00:06]} cxd5 {[%emt 0:00:02]} 10. h3 {[%emt 0:00:13]} h6 {[%emt 0:02:54]} 11. Qf3 {[%emt 0:00:04]} c6 {[%emt 0:00:41]} 12. Bf4 {[%emt 0:00:47]} Bd6 {[%emt 0:03:56]} 13. Rfe1 Rb8 {[%emt 0:03:57]} 14. Rab1 {[%emt 0:05:04]} Ra8 15. Ra1 Rb8 16. Rab1 1/2-1/2

[Event "58th Akiba Rubinstein D 2022"]
[Site "Polanica-Zdroj"]
[Date "2022.08.19"]
[Round "7.18"]
[White "Grzebieniowski, Michal"]
[Black "Durzynski, Jan"]
[Result "1-0"]
[ECO "D35"]
[WhiteElo "1710"]
[BlackElo "1406"]
[Annotator "NA RC"]
[PlyCount "73"]
[EventDate "2022.08.13"]
[EventCountry "POL"]
[SourceTitle "playchess.com"]
[Source "ChessBase"]
[SourceQuality "1"]
[TimeControl "40/5400+30:1800+30"]

1. d4 {[%emt 0:00:48]} d5 {[%emt 0:00:06]} 2. c4 {[%emt 0:00:03]} e6 {[%emt 0:00:06]} 3. Nc3 {[%emt 0:00:04]} Nf6 {[%emt 0:00:10]} 4. cxd5 {[%emt 0:00:04]} exd5 {[%emt 0:00:08]} 5. Bg5 {[%emt 0:00:03]} Be7 {[%emt 0:00:16]} 6. Qc2 {[%emt 0:00:06]} O-O {[%emt 0:00:43]} 7. e3 {[%emt 0:00:05]} h6 {[%emt 0:00:25]} 8. Bh4 {[%emt 0:00:04]} Be6 {[%emt 0:00:40]} 9. Bd3 {[%emt 0:00:06]} c6 10. Nge2 {[%emt 0:00:07]} Nbd7 {[%emt 0:01:25]} 11. O-O {[%emt 0:00:08]} c5 {[%emt 0:02:38]} 12. dxc5 {[%emt 0:02:00]} Nxc5 {[%emt 0:00:08]} 13. Rfd1 {[%emt 0:03:19]} Rc8 {[%emt 0:02:54]} 14. Rac1 {[%emt 0:06:04]} Nfe4 15. Bxe7 {[%emt 0:05:58]} Qxe7 {[%emt 0:02:55]} 16. Nf4 {[%emt 0:01:21]} Nxc3 {[%emt 0:01:26]} 17. Qxc3 {[%emt 0:00:42]} Nxd3 {[%emt 0:00:12]} 18. Qxd3 {[%emt 0:00:03]} Rxc1 {[%emt 0:03:11]} 19. Rxc1 {[%emt 0:00:03]} Qd7 {[%emt 0:00:25]} 20. h3 {[%emt 0:00:39]} Rc8 {[%emt 0:00:32]} 21. Rd1 {[%emt 0:00:52]} Rd8 {[%emt 0:04:09]} 22. Qd4 {[%emt 0:00:43]} b6 {[%emt 0:03:05]} 23. e4 {[%emt 0:02:12]} Rc8 {[%emt 0:04:06]} 24. exd5 {[%emt 0:00:20]} Bf5 {[%emt 0:00:24]} 25. d6 {[%emt 0:01:52]} Rc6 {[%emt 0:01:45]} 26. Nh5 {[%emt 0:03:27]} f6 {[%emt 0:00:18]} 27. Nf4 {[%emt 0:00:36]} Kh8 {[%emt 0:00:55]} 28. g4 {[%emt 0:02:19]} Bc2 {[%emt 0:01:18]} 29. Rd2 {[%emt 0:01:06]} Bh7 {[%emt 0:00:16]} 30. Qd5 {[%emt 0:01:02]} Rc8 {[%emt 0:01:18]} 31. Rd1 {[%emt 0:03:36]} Rd8 {[%emt 0:00:30]} 32. b4 f5 {[%emt 0:01:42]} 33. Ne6 {[%emt 0:12:50]} Re8 {[%emt 0:02:23]} 34. gxf5 {[%emt 0:00:07]} Bxf5 {[%emt 0:00:10]} 35. Qxf5 {[%emt 0:00:19]} Rxe6 {[%emt 0:00:06]} 36. Qxe6 {[%emt 0:00:58]} Qxe6 {[%emt 0:00:06]} 37. d7 {[%emt 0:00:04]} 1-0

[Event "58th Akiba Rubinstein D 2022"]
[Site "Polanica-Zdroj"]
[Date "2022.08.19"]
[Round "7.20"]
[White "Milczarek, Robert"]
[Black "Suszczynski, Dominik"]
[Result "*"]
[ECO "D53"]
[WhiteElo "1653"]
[BlackElo "1329"]
[Annotator "NA RC"]
[PlyCount "61"]
[EventDate "2022.08.13"]
[EventCountry "POL"]
[SourceTitle "playchess.com"]
[Source "ChessBase"]
[SourceQuality "1"]
[TimeControl "40/5400+30:1800+30"]

1. d4 {[%emt 0:00:03]} Nf6 {[%emt 0:00:04]} 2. c4 {[%emt 0:00:11]} e6 {[%emt 0:00:10]} 3. Nc3 {[%emt 0:00:19]} d5 {[%emt 0:00:31]} 4. Bg5 {[%emt 0:00:41]} Be7 {[%emt 0:00:14]} 5. cxd5 {[%emt 0:00:29]} Nxd5 {[%emt 0:01:20]} 6. Bxe7 {[%emt 0:00:26]} Qxe7 {[%emt 0:01:37]} 7. e4 {[%emt 0:01:00]} Nxc3 {[%emt 0:00:41]} 8. bxc3 {[%emt 0:00:08]} O-O {[%emt 0:01:52]} 9. Nf3 {[%emt 0:00:56]} c5 {[%emt 0:01:42]} 10. Bd3 {[%emt 0:03:36]} Nc6 {[%emt 0:01:26]} 11. O-O {[%emt 0:00:56]} Rd8 {[%emt 0:01:50]} 12. d5 {[%emt 0:06:43]} exd5 {[%emt 0:03:38]} 13. exd5 Ne5 {[%emt 0:03:45]} 14. Nxe5 {[%emt 0:02:16]} Qxe5 {[%emt 0:00:01]} 15. c4 g6 {[%emt 0:11:26]} 16. Qf3 {[%emt 0:07:33]} b5 {[%emt 0:07:44]} 17. Rfe1 {[%emt 0:03:38]} Qd4 {[%emt 0:03:06]} 18. Rac1 {[%emt 0:11:38]} Bg4 19. Qg3 {[%emt 0:01:42]} Re8 {[%emt 0:10:51]} 20. h3 {[%emt 0:05:20]} Bd7 21. cxb5 {[%emt 0:03:38]} Qxd5 {[%emt 0:03:05]} 22. Rxe8+ {[%emt 0:01:57]} Rxe8 23. Bc4 {[%emt 0:11:40]} Qd2 {[%emt 0:03:10]} 24. Rf1 {[%emt 0:04:44]} Qd4 {[%emt 0:03:28]} 25. Rc1 {[%emt 0:00:00]} Qd2 {[%emt 0:00:00]} 26. Rf1 {[%emt 0:01:00]} Qd4 {[%emt 0:00:00]} 27. Qb3 {[%emt 0:06:16]} Qd5 {[%emt 0:00:00]} 28. Qg3 {[%emt 0:00:00]} Qd4 29. Qb3 {[%emt 0:01:00]} Be6 {[%emt 0:04:59]} 30. Bxe6 {[%emt 0:03:38]} Rxe6 {[%emt 0:00:01]} 31. Rd1 {[%emt 0:01:09]} *

[Event "58th Akiba Rubinstein D 2022"]
[Site "Polanica-Zdroj"]
[Date "2022.08.19"]
[Round "7.21"]
[White "Krygiel, Konrad"]
[Black "Rychlik, Michal"]
[Result "*"]
[ECO "C29"]
[WhiteElo "1603"]
[BlackElo "1354"]
[Annotator "NA RC"]
[PlyCount "55"]
[EventDate "2022.08.13"]
[EventCountry "POL"]
[SourceTitle "playchess.com"]
[Source "ChessBase"]
[SourceQuality "1"]
[TimeControl "40/5400+30:1800+30"]

1. e4 {[%emt 0:04:58]} e5 {[%emt 0:00:41]} 2. Nc3 {[%emt 0:00:07]} Nf6 {[%emt 0:00:19]} 3. f4 {[%emt 0:00:09]} d5 {[%emt 0:00:02]} 4. fxe5 {[%emt 0:00:06]} Nxe4 {[%emt 0:00:07]} 5. Qf3 {[%emt 0:00:10]} Nc6 {[%emt 0:01:12]} 6. Bb5 {[%emt 0:00:13]} Nxc3 {[%emt 0:05:46]} 7. dxc3 {[%emt 0:03:42]} Qh4+ {[%emt 0:02:34]} 8. g3 {[%emt 0:00:41]} Qe4+ {[%emt 0:00:06]} 9. Be3 Bf5 {[%emt 0:08:06]} 10. Bd3 {[%emt 0:09:10]} Qxf3 {[%emt 0:00:29]} 11. Nxf3 Be4 {[%emt 0:08:22]} 12. Bxe4 {[%emt 0:11:51]} dxe4 {[%emt 0:00:02]} 13. Ng5 {[%emt 0:00:01]} Nxe5 {[%emt 0:01:15]} 14. O-O-O {[%emt 0:05:11]} Nc4 {[%emt 0:10:59]} 15. Bf4 {[%emt 0:16:07]} Bd6 {[%emt 0:21:40]} 16. Rd4 {[%emt 0:05:42]} Bxf4+ {[%emt 0:02:35]} 17. gxf4 {[%emt 0:01:32]} Nd6 {[%emt 0:03:22]} 18. Nxe4 {[%emt 0:06:00]} Nf5 {[%emt 0:02:51]} 19. Rc4 {[%emt 0:03:23]} O-O-O {[%emt 0:02:01]} 20. Ng5 {[%emt 0:02:01]} Rd7 {[%emt 0:04:00]} 21. Re1 {[%emt 0:02:23]} Rhd8 {[%emt 0:00:00]} 22. Rh1 {[%emt 0:00:00]} Rh8 {[%emt 0:01:00]} 23. Re1 {[%emt 0:01:00]} Rhd8 {[%emt 0:00:00]} 24. Rh1 {[%emt 0:00:00]} Rh8 25. Re1 {[%emt 0:01:00]} Rhd8 {[%emt 0:01:30]} 26. Rce4 {[%emt 0:00:00]} Rh8 {[%emt 0:00:00]} 27. Rc4 {[%emt 0:01:00]} Rhd8 {[%emt 0:01:00]} 28. Rce4 {[%emt 0:02:15]} *

[Event "58th Akiba Rubinstein D 2022"]
[Site "Polanica-Zdroj"]
[Date "2022.08.19"]
[Round "7.22"]
[White "Misiek, Stanislaw"]
[Black "Garwacki, Kornel"]
[Result "1-0"]
[ECO "E81"]
[WhiteElo "1427"]
[BlackElo "1571"]
[Annotator "NA RC"]
[PlyCount "57"]
[EventDate "2022.08.13"]
[EventCountry "POL"]
[SourceTitle "playchess.com"]
[Source "ChessBase"]
[SourceQuality "1"]
[TimeControl "40/5400+30:1800+30"]

1. d4 {[%emt 0:00:03]} Nf6 {[%emt 0:00:02]} 2. c4 {[%emt 0:00:17]} d6 {[%emt 0:00:01]} 3. Nc3 {[%emt 0:00:17]} g6 {[%emt 0:00:03]} 4. e4 {[%emt 0:00:09]} Bg7 {[%emt 0:00:05]} 5. f3 {[%emt 0:00:06]} O-O {[%emt 0:00:06]} 6. Nge2 {[%emt 0:00:07]} Nc6 {[%emt 0:00:22]} 7. Be3 {[%emt 0:00:22]} e5 {[%emt 0:00:30]} 8. d5 {[%emt 0:02:09]} Ne7 {[%emt 0:00:15]} 9. Qd2 {[%emt 0:02:22]} Nd7 {[%emt 0:02:52]} 10. g4 {[%emt 0:01:40]} f5 {[%emt 0:01:41]} 11. gxf5 {[%emt 0:00:07]} gxf5 {[%emt 0:00:09]} 12. h4 {[%emt 0:06:43]} f4 {[%emt 0:03:51]} 13. Bf2 {[%emt 0:00:06]} Nb6 {[%emt 0:01:20]} 14. Nc1 {[%emt 0:07:42]} Bd7 {[%emt 0:04:24]} 15. b3 {[%emt 0:05:54]} Kh8 {[%emt 0:05:10]} 16. Nd3 {[%emt 0:00:30]} c5 {[%emt 0:07:26]} 17. O-O-O {[%emt 0:03:48]} a6 {[%emt 0:04:24]} 18. h5 {[%emt 0:04:35]} Nbc8 {[%emt 0:02:13]} 19. Bh3 {[%emt 0:01:21]} b5 {[%emt 0:01:23]} 20. Rdg1 {[%emt 0:02:21]} Bf6 {[%emt 0:04:37]} 21. Bxd7 {[%emt 0:11:13]} Qxd7 {[%emt 0:00:01]} 22. Bh4 {[%emt 0:00:09]} bxc4 {[%emt 0:03:38]} 23. Qg2 {[%emt 0:01:28]} Nxd5 {[%emt 0:05:54]} 24. Nxd5 {[%emt 0:02:42]} Bxh4 {[%emt 0:01:01]} 25. Rxh4 {[%emt 0:00:12]} cxd3 {[%emt 0:00:34]} 26. Rg4 {[%emt 0:01:25]} Qd8 {[%emt 0:04:25]} 27. Rg7 {[%emt 0:00:39]} d2+ {[%emt 0:03:14]} 28. Kd1 {[%emt 0:00:42]} Qe8 {[%emt 0:01:41]} 29. Rxh7+ {[%emt 0:00:21]} 1-0

[Event "58th Akiba Rubinstein D 2022"]
[Site "Polanica-Zdroj"]
[Date "2022.08.19"]
[Round "7.24"]
[White "Latacz, Grzegorz"]
[Black "Para, Tomasz"]
[Result "1/2-1/2"]
[ECO "D32"]
[WhiteElo "1449"]
[BlackElo "1796"]
[Annotator "NA RC"]
[PlyCount "22"]
[EventDate "2022.08.13"]
[EventCountry "POL"]
[SourceTitle "playchess.com"]
[Source "ChessBase"]
[SourceQuality "1"]
[TimeControl "40/5400+30:1800+30"]

1. c4 {[%emt 0:00:02]} e6 {[%emt 0:00:09]} 2. d4 {[%emt 0:01:05]} d5 {[%emt 0:00:06]} 3. Nc3 {[%emt 0:00:14]} c5 {[%emt 0:00:07]} 4. dxc5 {[%emt 0:08:13]} d4 {[%emt 0:03:08]} 5. Nb5 {[%emt 0:03:26]} Nc6 {[%emt 0:07:01]} 6. Nf3 {[%emt 0:02:27]} Bxc5 {[%emt 0:03:21]} 7. g3 a6 {[%emt 0:07:47]} 8. Na3 {[%emt 0:10:45]} e5 {[%emt 0:07:33]} 9. Bg2 {[%emt 0:14:15]} Nf6 {[%emt 0:10:39]} 10. Bf1 Ng8 11. Bg2 Nf6 1/2-1/2

[Event "58th Akiba Rubinstein D 2022"]
[Site "Polanica-Zdroj"]
[Date "2022.08.19"]
[Round "7.25"]
[White "Pieczulis, Hubert"]
[Black "Huchwajda, Katarzyna"]
[Result "0-1"]
[ECO "D43"]
[WhiteElo "1472"]
[BlackElo "1768"]
[Annotator "NA RC"]
[PlyCount "44"]
[EventDate "2022.08.13"]
[EventCountry "POL"]
[SourceTitle "playchess.com"]
[Source "ChessBase"]
[SourceQuality "1"]
[TimeControl "40/5400+30:1800+30"]

1. d4 {[%emt 0:00:10]} d5 {[%emt 0:00:22]} 2. Nf3 e6 {[%emt 0:00:08]} 3. c4 {[%emt 0:00:29]} Nf6 {[%emt 0:00:21]} 4. Nc3 {[%emt 0:00:28]} c6 {[%emt 0:00:09]} 5. Bg5 {[%emt 0:00:30]} h6 {[%emt 0:00:15]} 6. Bf4 {[%emt 0:01:19]} Bb4 {[%emt 0:01:40]} 7. Qc2 {[%emt 0:02:54]} O-O {[%emt 0:03:02]} 8. e3 {[%emt 0:02:58]} Nbd7 {[%emt 0:02:02]} 9. Be2 {[%emt 0:03:30]} dxc4 {[%emt 0:00:24]} 10. O-O {[%emt 0:00:58]} b5 11. a4 {[%emt 0:02:45]} Qb6 {[%emt 0:07:16]} 12. e4 Bb7 {[%emt 0:08:47]} 13. Be3 {[%emt 0:10:38]} Ng4 {[%emt 0:04:01]} 14. e5 {[%emt 0:04:27]} Nxe3 {[%emt 0:03:52]} 15. fxe3 {[%emt 0:00:28]} a6 {[%emt 0:04:24]} 16. Kh1 {[%emt 0:07:22]} Qc7 {[%emt 0:03:43]} 17. Qe4 {[%emt 0:03:48]} Nb6 {[%emt 0:11:57]} 18. Na2 {[%emt 0:04:47]} a5 {[%emt 0:05:15]} 19. Rac1 {[%emt 0:05:13]} c5 {[%emt 0:07:12]} 20. Qb1 {[%emt 0:01:12]} Nxa4 {[%emt 0:03:19]} 21. Nxb4 axb4 {[%emt 0:02:53]} 22. b3 {[%emt 0:02:15]} Nc3 {[%emt 0:01:20]} 0-1

[Event "58th Akiba Rubinstein D 2022"]
[Site "Polanica-Zdroj"]
[Date "2022.08.19"]
[Round "7.27"]
[White "Wziatek, Marek"]
[Black "Dysko, Michal"]
[Result "1/2-1/2"]
[ECO "A34"]
[WhiteElo "1617"]
[BlackElo "1376"]
[Annotator "NA RC"]
[PlyCount "57"]
[EventDate "2022.08.13"]
[EventCountry "POL"]
[SourceTitle "playchess.com"]
[Source "ChessBase"]
[SourceQuality "1"]
[TimeControl "40/5400+30:1800+30"]

1. c4 {[%emt 0:00:05]} Nf6 {[%emt 0:00:13]} 2. Nc3 {[%emt 0:00:06]} c5 {[%emt 0:00:05]} 3. g3 {[%emt 0:00:40]} d5 {[%emt 0:00:13]} 4. cxd5 {[%emt 0:00:06]} Nxd5 {[%emt 0:00:07]} 5. Bg2 {[%emt 0:00:04]} Nc7 {[%emt 0:00:12]} 6. Nf3 {[%emt 0:00:10]} Nc6 {[%emt 0:00:05]} 7. O-O {[%emt 0:00:50]} e5 {[%emt 0:00:08]} 8. d3 {[%emt 0:00:08]} Be7 {[%emt 0:00:41]} 9. Be3 {[%emt 0:00:55]} O-O {[%emt 0:00:26]} 10. Nd2 Nd4 {[%emt 0:08:40]} 11. Rc1 {[%emt 0:03:11]} Rb8 {[%emt 0:00:58]} 12. f4 exf4 {[%emt 0:00:48]} 13. Bxf4 {[%emt 0:02:01]} Bd6 {[%emt 0:00:04]} 14. Bxd6 {[%emt 0:00:15]} Qxd6 {[%emt 0:00:02]} 15. Nce4 {[%emt 0:00:18]} Qe7 {[%emt 0:00:48]} 16. e3 {[%emt 0:14:08]} Nde6 17. Re1 {[%emt 0:04:21]} b6 {[%emt 0:01:04]} 18. Qc2 {[%emt 0:00:17]} Bb7 19. Nf2 {[%emt 0:05:29]} Bxg2 {[%emt 0:01:51]} 20. Kxg2 {[%emt 0:00:01]} Rfd8 {[%emt 0:01:36]} 21. Nf3 {[%emt 0:01:55]} Nd5 {[%emt 0:05:04]} 22. a3 {[%emt 0:00:41]} Ng5 {[%emt 0:07:55]} 23. Qe2 {[%emt 0:02:44]} Qf6 {[%emt 0:01:49]} 24. Nxg5 {[%emt 0:01:49]} Qxg5 {[%emt 0:00:02]} 25. Qf3 {[%emt 0:00:33]} Re8 {[%emt 0:06:37]} 26. e4 {[%emt 0:00:47]} Ne7 {[%emt 0:00:02]} 27. Qf4 {[%emt 0:00:47]} Nd5 28. Qf3 Ne7 29. Qf4 1/2-1/2

[Event "58th Akiba Rubinstein D 2022"]
[Site "Polanica-Zdroj"]
[Date "2022.08.19"]
[Round "7.28"]
[White "Paziewski, Marcin"]
[Black "Markiewicz, Jacek"]
[Result "*"]
[ECO "E91"]
[WhiteElo "1413"]
[BlackElo "1610"]
[Annotator "NA RC"]
[PlyCount "122"]
[EventDate "2022.08.13"]
[EventCountry "POL"]
[SourceTitle "playchess.com"]
[Source "ChessBase"]
[SourceQuality "1"]
[TimeControl "40/5400+30:1800+30"]

1. d4 {[%emt 0:00:04]} Nf6 {[%emt 0:00:03]} 2. c4 {[%emt 0:00:07]} d6 {[%emt 0:00:02]} 3. Nf3 {[%emt 0:00:41]} g6 {[%emt 0:00:13]} 4. Nc3 {[%emt 0:00:48]} Bg7 {[%emt 0:00:07]} 5. e4 {[%emt 0:01:32]} O-O {[%emt 0:00:22]} 6. Be2 {[%emt 0:03:32]} Nbd7 {[%emt 0:04:33]} 7. O-O {[%emt 0:04:27]} e5 8. Qc2 {[%emt 0:11:13]} exd4 {[%emt 0:08:13]} 9. Nxd4 {[%emt 0:23:49]} Nc5 10. Rd1 {[%emt 0:01:02]} Ng4 {[%emt 0:14:31]} 11. b4 {[%emt 0:12:43]} Ne6 {[%emt 0:23:54]} 12. Nxe6 {[%emt 0:00:30]} Bxe6 {[%emt 0:00:21]} 13. c5 {[%emt 0:06:16]} Nxf2 14. Rf1 {[%emt 0:03:13]} Bxc3 {[%emt 0:12:33]} 15. Qxc3 {[%emt 0:03:21]} Nxe4 {[%emt 0:01:06]} 16. Qd4 {[%emt 0:00:30]} f5 {[%emt 0:07:09]} 17. Bb2 {[%emt 0:00:08]} Nf6 {[%emt 0:00:36]} 18. g4 {[%emt 0:00:30]} dxc5 {[%emt 0:02:12]} 19. Qe5 {[%emt 0:00:20]} Qd6 {[%emt 0:02:38]} 20. g5 {[%emt 0:05:26]} Qxe5 {[%emt 0:00:43]} 21. Bxe5 {[%emt 0:01:48]} Ne4 22. bxc5 {[%emt 0:02:56]} c6 {[%emt 0:12:01]} 23. h4 {[%emt 0:02:47]} Rad8 {[%emt 0:01:51]} 24. Rfd1 {[%emt 0:02:00]} Bd5 {[%emt 0:02:40]} 25. Bd4 {[%emt 0:00:00]} Be6 {[%emt 0:00:00]} 26. Be5 {[%emt 0:01:00]} Bd5 {[%emt 0:01:00]} 27. Bd4 Rfe8 {[%emt 0:01:31]} 28. Rab1 {[%emt 0:06:09]} Rd7 {[%emt 0:00:00]} 29. Ra1 {[%emt 0:00:03]} Rdd8 {[%emt 0:01:00]} 30. Rab1 {[%emt 0:00:57]} Rd7 {[%emt 0:01:02]} 31. Rb2 {[%emt 0:03:53]} Ree7 {[%emt 0:00:00]} 32. Rbb1 {[%emt 0:00:00]} Re8 {[%emt 0:01:00]} 33. Rb2 {[%emt 0:01:00]} Ree7 {[%emt 0:01:53]} 34. a4 {[%emt 0:01:25]} Kf7 {[%emt 0:00:26]} 35. a5 {[%emt 0:00:55]} a6 {[%emt 0:00:17]} 36. Bf3 {[%emt 0:01:43]} Nxc5 {[%emt 0:01:56]} 37. Bxc5 {[%emt 0:01:07]} Bxf3 {[%emt 0:00:13]} 38. Rdb1 {[%emt 0:00:57]} Be4 {[%emt 0:00:53]} 39. Re1 {[%emt 0:00:33]} Re5 {[%emt 0:00:24]} 40. Bb6 {[%emt 0:00:16]} Red5 {[%emt 0:01:05]} 41. Ree2 {[%emt 0:30:39]} Rd1+ {[%emt 0:31:00]} 42. Kf2 {[%emt 0:00:02]} R1d3 {[%emt 0:00:35]} 43. Kg1 {[%emt 0:00:58]} Rd1+ {[%emt 0:00:25]} 44. Kf2 {[%emt 0:00:02]} R1d3 {[%emt 0:00:35]} 45. Re3 {[%emt 0:00:45]} R3d5 {[%emt 0:00:00]} 46. Ree2 {[%emt 0:00:15]} Rd3 {[%emt 0:01:00]} 47. Re3 {[%emt 0:00:45]} Rd2+ {[%emt 0:01:05]} 48. Re2 {[%emt 0:00:01]} Rxe2+ {[%emt 0:00:17]} 49. Kxe2 {[%emt 0:00:23]} Ke6 {[%emt 0:00:22]} 50. Ke1 {[%emt 0:01:17]} Ke5 {[%emt 0:00:15]} 51. Kf2 {[%emt 0:00:24]} f4 {[%emt 0:00:48]} 52. Re2 {[%emt 0:00:28]} Rd3 {[%emt 0:00:48]} 53. Rb2 {[%emt 0:00:30]} Rh3 {[%emt 0:00:37]} 54. Bc7+ {[%emt 0:00:04]} Kf5 {[%emt 0:00:30]} 55. Rxb7 {[%emt 0:00:11]} Rh2+ {[%emt 0:00:07]} 56. Ke1 {[%emt 0:00:23]} Kg4 {[%emt 0:00:38]} 57. Rb4 {[%emt 0:00:44]} Kf5 {[%emt 0:00:22]} 58. Rb7 {[%emt 0:00:16]} Kg4 {[%emt 0:00:38]} 59. Rb4 {[%emt 0:00:44]} Kf3 {[%emt 0:00:54]} 60. Rb3+ {[%emt 0:00:12]} Kg4 {[%emt 0:00:31]} 61. Rb4 {[%emt 0:00:02]} Rh1+ {[%emt 0:00:28]} *

[Event "58th Akiba Rubinstein D 2022"]
[Site "Polanica-Zdroj"]
[Date "2022.08.19"]
[Round "7.29"]
[White "Perucki, Maciej"]
[Black "Rosa, Antoni"]
[Result "1-0"]
[ECO "C00"]
[WhiteElo "1449"]
[BlackElo "1598"]
[Annotator "NA RC"]
[PlyCount "60"]
[EventDate "2022.08.13"]
[EventCountry "POL"]
[SourceTitle "playchess.com"]
[Source "ChessBase"]
[SourceQuality "1"]
[TimeControl "40/5400+30:1800+30"]

1. e4 {[%emt 0:00:02]} e6 {[%emt 0:00:10]} 2. d3 {[%emt 0:00:04]} d5 {[%emt 0:00:10]} 3. Nd2 {[%emt 0:00:04]} dxe4 {[%emt 0:00:14]} 4. dxe4 {[%emt 0:00:05]} Nd7 {[%emt 0:01:23]} 5. Ngf3 {[%emt 0:00:08]} b6 {[%emt 0:00:17]} 6. g3 {[%emt 0:00:28]} Bb7 {[%emt 0:00:17]} 7. Bg2 {[%emt 0:00:06]} Ngf6 {[%emt 0:01:33]} 8. Qe2 {[%emt 0:05:28]} Bc5 {[%emt 0:06:04]} 9. O-O {[%emt 0:00:20]} O-O {[%emt 0:00:15]} 10. b3 {[%emt 0:01:45]} Qe7 {[%emt 0:01:44]} 11. Bb2 {[%emt 0:00:35]} a5 {[%emt 0:00:43]} 12. a4 {[%emt 0:02:00]} Rfd8 {[%emt 0:02:48]} 13. h3 {[%emt 0:05:00]} c6 {[%emt 0:16:07]} 14. Rfd1 {[%emt 0:00:53]} Ba6 {[%emt 0:00:36]} 15. c4 {[%emt 0:00:45]} e5 {[%emt 0:09:20]} 16. Ne1 Ne8 {[%emt 0:05:08]} 17. Kh1 {[%emt 0:12:20]} Bb4 {[%emt 0:01:58]} 18. Nd3 {[%emt 0:04:46]} Nc7 {[%emt 0:04:12]} 19. f4 {[%emt 0:03:01]} Ne6 20. Nf3 {[%emt 0:06:51]} exf4 {[%emt 0:06:30]} 21. gxf4 {[%emt 0:00:52]} Ndc5 {[%emt 0:00:56]} 22. Nfe5 {[%emt 0:05:04]} Nxd3 {[%emt 0:02:02]} 23. Nxd3 {[%emt 0:02:09]} b5 {[%emt 0:02:15]} 24. Nxb4 {[%emt 0:06:02]} Qxb4 {[%emt 0:00:25]} 25. f5 {[%emt 0:00:14]} Nc7 {[%emt 0:02:10]} 26. Qg4 {[%emt 0:00:14]} Ne8 {[%emt 0:00:17]} 27. Bxg7 {[%emt 0:04:20]} Nxg7 {[%emt 0:00:08]} 28. f6 {[%emt 0:00:03]} Qf8 {[%emt 0:00:06]} 29. axb5 {[%emt 0:00:46]} cxb5 {[%emt 0:00:18]} 30. e5 {[%emt 0:01:16]} Rab8 {[%emt 0:01:08]} 1-0

[Event "58th Akiba Rubinstein D 2022"]
[Site "Polanica-Zdroj"]
[Date "2022.08.19"]
[Round "7.30"]
[White "Litwin, Tomasz"]
[Black "Galazka, Michal"]
[Result "1/2-1/2"]
[ECO "A00"]
[WhiteElo "1580"]
[BlackElo "1216"]
[Annotator "NA RC"]
[PlyCount "72"]
[EventDate "2022.08.13"]
[EventCountry "POL"]
[SourceTitle "playchess.com"]
[Source "ChessBase"]
[SourceQuality "1"]
[TimeControl "40/5400+30:1800+30"]

1. b4 {[%emt 0:00:02]} d5 {[%emt 0:00:52]} 2. Bb2 {[%emt 0:00:02]} Bf5 {[%emt 0:00:08]} 3. e3 {[%emt 0:00:42]} Nf6 {[%emt 0:00:17]} 4. Nf3 {[%emt 0:00:03]} h6 {[%emt 0:01:52]} 5. c4 {[%emt 0:01:22]} e6 {[%emt 0:00:25]} 6. Qb3 {[%emt 0:00:20]} c6 {[%emt 0:00:39]} 7. d4 Nbd7 {[%emt 0:08:01]} 8. Nbd2 {[%emt 0:00:55]} Be7 {[%emt 0:01:48]} 9. a4 {[%emt 0:00:35]} O-O {[%emt 0:07:25]} 10. Be2 {[%emt 0:00:33]} a6 {[%emt 0:03:16]} 11. b5 {[%emt 0:00:40]} axb5 {[%emt 0:09:14]} 12. axb5 {[%emt 0:00:23]} Rxa1+ {[%emt 0:03:27]} 13. Bxa1 cxb5 {[%emt 0:16:31]} 14. cxd5 {[%emt 0:05:40]} exd5 {[%emt 0:00:38]} 15. Qxb5 {[%emt 0:01:05]} Qb6 {[%emt 0:00:57]} 16. O-O {[%emt 0:01:41]} Qxb5 {[%emt 0:01:16]} 17. Bxb5 {[%emt 0:00:02]} Rc8 {[%emt 0:02:52]} 18. Nb3 {[%emt 0:06:31]} Bb4 {[%emt 0:04:21]} 19. Rc1 {[%emt 0:07:12]} Rxc1+ {[%emt 0:00:49]} 20. Nxc1 {[%emt 0:00:10]} Kf8 {[%emt 0:06:15]} 21. Kf1 {[%emt 0:00:03]} Ke7 {[%emt 0:00:50]} 22. Ke2 Ne4 {[%emt 0:01:54]} 23. Nd3 {[%emt 0:03:44]} Bc3 {[%emt 0:02:54]} 24. Bxd7 {[%emt 0:01:53]} Bxd7 {[%emt 0:01:14]} 25. Bxc3 {[%emt 0:00:54]} Nxc3+ {[%emt 0:00:06]} 26. Kd2 {[%emt 0:00:17]} Ne4+ {[%emt 0:01:15]} 27. Kc2 {[%emt 0:00:44]} f6 {[%emt 0:03:04]} 28. Nfe1 {[%emt 0:00:15]} Kd8 {[%emt 0:03:50]} 29. f3 {[%emt 0:00:20]} Nd6 {[%emt 0:00:30]} 30. Kb3 {[%emt 0:02:03]} Nf5 {[%emt 0:01:52]} 31. Nc2 {[%emt 0:01:55]} Nh4 {[%emt 0:01:12]} 32. Nde1 {[%emt 0:01:02]} Bc6 {[%emt 0:02:38]} 33. g3 Nf5 {[%emt 0:00:55]} 34. Nd3 {[%emt 0:02:38]} Ne7 {[%emt 0:02:30]} 35. Nc5 {[%emt 0:02:39]} g6 36. e4 {[%emt 0:03:07]} b6 {[%emt 0:04:47]} 1/2-1/2